[Event "Titled Tuesday Blitz April 18 Late 2023"]
[White "Gatterer, Florian"]
[Black "Gubajdullin, Alexei"]
[WhiteFideId "811688"]
[BlackFideId "4141202"]
[WhiteElo "2221"]
[BlackElo "2279"]
[Result "0-1"]
[Round "08"]
[TimeControl "180+2"]
[Date "2023.04.18"]
[WhiteClock "0:00:03"]
[BlackClock "0:00:06"]

1. c4 {[%clk 0:03:00]}  Nf6 {[%clk 0:02:56]} 2. Nf3 {[%clk 0:03:00]}  g6 {[%clk 0:02:56]} 3. b3 {[%clk 0:03:00]}  Bg7 {[%clk 0:02:56]} 4. Bb2 {[%clk 0:03:00]}  O-O {[%clk 0:02:56]} 5. g3 {[%clk 0:03:00]}  d6 {[%clk 0:02:56]} 6. d4 {[%clk 0:03:00]}  Ne4 {[%clk 0:02:55]} 7. Nbd2 {[%clk 0:02:54]}  Bf5 {[%clk 0:02:52]} 8. Nh4 {[%clk 0:02:45]}  Nxd2 {[%clk 0:02:48]} 9. Qxd2 {[%clk 0:02:45]}  Be4 {[%clk 0:02:47]} 10. f3 {[%clk 0:02:45]}  Bc6 {[%clk 0:02:46]} 11. Bg2 {[%clk 0:02:32]}  Na6 {[%clk 0:02:34]} 12. O-O {[%clk 0:02:25]}  d5 {[%clk 0:02:30]} 13. cxd5 {[%clk 0:02:16]}  Qxd5 {[%clk 0:02:28]} 14. e4 {[%clk 0:02:13]}  Qb5 {[%clk 0:02:25]} 15. Rfd1 {[%clk 0:02:06]}  Qb4 {[%clk 0:02:18]} 16. Bc3 {[%clk 0:02:05]}  Qd6 {[%clk 0:02:03]} 17. d5 {[%clk 0:01:57]}  Bd7 {[%clk 0:01:59]} 18. Bxg7 {[%clk 0:01:42]}  Kxg7 {[%clk 0:01:57]} 19. Rac1 {[%clk 0:01:42]}  f6 {[%clk 0:01:46]} 20. Bf1 {[%clk 0:01:36]}  Rac8 {[%clk 0:01:43]} 21. Ng2 {[%clk 0:01:32]}  Qb6+ {[%clk 0:01:30]} 22. Kh1 {[%clk 0:01:29]}  c6 {[%clk 0:01:21]} 23. Ne3 {[%clk 0:01:29]}  Rfd8 {[%clk 0:00:55]} 24. Bxa6 {[%clk 0:01:16]}  Qxa6 {[%clk 0:00:53]} 25. Qb4 {[%clk 0:01:16]}  Kf7 {[%clk 0:00:42]} 26. d6 {[%clk 0:01:01]}  e5 {[%clk 0:00:39]} 27. f4 {[%clk 0:00:56]}  Qe2 {[%clk 0:00:35]} 28. Qc4+ {[%clk 0:00:52]}  Qxc4 {[%clk 0:00:34]} 29. Nxc4 {[%clk 0:00:52]}  exf4 {[%clk 0:00:31]} 30. gxf4 {[%clk 0:00:48]}  Re8 {[%clk 0:00:30]} 31. e5 {[%clk 0:00:42]}  c5 {[%clk 0:00:27]} 32. Kg1 {[%clk 0:00:38]}  b5 {[%clk 0:00:24]} 33. Ne3 {[%clk 0:00:14]}  fxe5 {[%clk 0:00:24]} 34. fxe5 {[%clk 0:00:08]}  Rxe5 {[%clk 0:00:23]} 35. Nd5 {[%clk 0:00:07]}  c4 {[%clk 0:00:20]} 36. bxc4 {[%clk 0:00:06]}  Rxc4 {[%clk 0:00:20]} 37. Rf1+ {[%clk 0:00:04]}  Kg7 {[%clk 0:00:19]} 38. Rxc4 {[%clk 0:00:04]}  bxc4 {[%clk 0:00:19]} 39. Nf6 {[%clk 0:00:04]}  Bh3 {[%clk 0:00:13]} 40. d7 {[%clk 0:00:04]}  Rg5+ {[%clk 0:00:11]} 41. Kf2 {[%clk 0:00:03]}  Rg2+ {[%clk 0:00:05]} 42. Ke3 {[%clk 0:00:03]}  Bxd7 {[%clk 0:00:04]} 43. Nxd7 {[%clk 0:00:03]}  Rxa2 {[%clk 0:00:04]} 44. Ne5 {[%clk 0:00:03]}  Ra3+ {[%clk 0:00:01]} 45. Kd4 {[%clk 0:00:03]}  Ra2 {[%clk 0:00:02]} 46. Nxc4 {[%clk 0:00:02]}  Rxh2 {[%clk 0:00:02]} 47. Ra1 {[%clk 0:00:02]}  Rh4+ {[%clk 0:00:03]} 48. Kd5 {[%clk 0:00:02]}  Rh5+ {[%clk 0:00:03]} 49. Kd6 {[%clk 0:00:02]}  Rh4 {[%clk 0:00:04]} 50. Ne5 {[%clk 0:00:02]}  Rd4+ {[%clk 0:00:03]} 51. Ke6 {[%clk 0:00:02]}  Re4 {[%clk 0:00:03]} 52. Rxa7+ {[%clk 0:00:02]}  Kh6 {[%clk 0:00:03]} 53. Ra5 {[%clk 0:00:03]}  Kh5 {[%clk 0:00:03]} 54. Ra1 {[%clk 0:00:03]}  Kg5 {[%clk 0:00:02]} 55. Rg1+ {[%clk 0:00:03]}  Kf4 {[%clk 0:00:02]} 56. Rf1+ {[%clk 0:00:03]}  Ke3 {[%clk 0:00:02]} 57. Re1+ {[%clk 0:00:03]}  Kd4 {[%clk 0:00:03]} 58. Rxe4+ {[%clk 0:00:03]}  Kxe4 {[%clk 0:00:03]} 59. Kf6 {[%clk 0:00:04]}  g5 {[%clk 0:00:02]} 60. Ng4 {[%clk 0:00:03]}  Kf4 {[%clk 0:00:02]} 61. Nh6 {[%clk 0:00:03]}  g4 {[%clk 0:00:01]} 62. Nxg4 {[%clk 0:00:03]}  Kxg4 {[%clk 0:00:02]} 63. Kg7 {[%clk 0:00:01]}  h5 {[%clk 0:00:03]} 64. Kg6 {[%clk 0:00:01]}  h4 {[%clk 0:00:04]} 65. Kg7 {[%clk 0:00:02]}  h3 {[%clk 0:00:05]} 66. Kg6 {[%clk 0:00:03]}  h2 {[%clk 0:00:05]} 67. Kg7 {[%clk 0:00:03]}  h1=Q {[%clk 0:00:06]} 0-1


[Site "https://www.chess.com"]

[Event "Titled Tuesday Blitz April 18 Late 2023"]
[White "Florianovitz, Derlei Alex"]
[Black "Mikhalsky, Vladimir"]
[WhiteFideId "2114178"]
[BlackFideId "14144352"]
[WhiteElo "1953"]
[BlackElo "2236"]
[Result "0-1"]
[Round "08"]
[TimeControl "180+2"]
[Date "2023.04.18"]
[WhiteClock "0:02:25"]
[BlackClock "0:02:06"]

1. e4 {[%clk 0:03:00]}  g6 {[%clk 0:02:56]} 2. d4 {[%clk 0:03:00]}  Bg7 {[%clk 0:02:56]} 3. Nc3 {[%clk 0:03:00]}  d6 {[%clk 0:02:56]} 4. Be3 {[%clk 0:03:00]}  a6 {[%clk 0:02:54]} 5. Qd2 {[%clk 0:03:00]}  b5 {[%clk 0:02:54]} 6. O-O-O {[%clk 0:03:00]}  Nd7 {[%clk 0:02:52]} 7. h4 {[%clk 0:03:00]}  h5 {[%clk 0:02:49]} 8. f3 {[%clk 0:02:59]}  Nb6 {[%clk 0:02:49]} 9. Be2 {[%clk 0:02:58]}  b4 {[%clk 0:02:43]} 10. Nd5 {[%clk 0:02:58]}  Nxd5 {[%clk 0:02:41]} 11. exd5 {[%clk 0:02:58]}  Nf6 {[%clk 0:02:40]} 12. Bc4 {[%clk 0:02:54]}  Bb7 {[%clk 0:02:39]} 13. Nh3 {[%clk 0:02:50]}  Bxd5 {[%clk 0:02:34]} 14. Bxd5 {[%clk 0:02:49]}  Nxd5 {[%clk 0:02:34]} 15. Rde1 {[%clk 0:02:44]}  c6 {[%clk 0:02:14]} 16. Bg5 {[%clk 0:02:42]}  Qa5 {[%clk 0:02:08]} 17. Nf4 {[%clk 0:02:25]}  Qxa2 {[%clk 0:02:07]} 18. Nxd5 {[%clk 0:02:25]}  Qa1# {[%clk 0:02:06]} 0-1


[Site "https://www.chess.com"]

[Event "Titled Tuesday Blitz April 18 Late 2023"]
[White "Barrientos, Sergio E"]
[Black "Winkels, Marcel"]
[WhiteFideId "4401824"]
[BlackFideId "1003887"]
[WhiteElo "2423"]
[BlackElo "1900"]
[Result "1-0"]
[Round "08"]
[TimeControl "180+2"]
[Date "2023.04.18"]
[WhiteClock "0:01:20"]
[BlackClock "0:00:13"]

1. a3 {[%clk 0:02:58]}  d5 {[%clk 0:02:57]} 2. h3 {[%clk 0:02:59]}  Nf6 {[%clk 0:02:57]} 3. d4 {[%clk 0:02:59]}  g6 {[%clk 0:02:56]} 4. Nf3 {[%clk 0:03:00]}  Bg7 {[%clk 0:02:56]} 5. c4 {[%clk 0:03:01]}  O-O {[%clk 0:02:56]} 6. Nc3 {[%clk 0:03:02]}  c5 {[%clk 0:02:53]} 7. cxd5 {[%clk 0:03:00]}  Nxd5 {[%clk 0:02:51]} 8. e3 {[%clk 0:03:00]}  Nc6 {[%clk 0:02:47]} 9. Bc4 {[%clk 0:02:58]}  Nxc3 {[%clk 0:02:46]} 10. bxc3 {[%clk 0:02:59]}  cxd4 {[%clk 0:02:46]} 11. cxd4 {[%clk 0:02:59]}  e5 {[%clk 0:02:40]} 12. Bb2 {[%clk 0:02:56]}  exd4 {[%clk 0:02:39]} 13. Nxd4 {[%clk 0:02:55]}  Nxd4 {[%clk 0:02:38]} 14. Bxd4 {[%clk 0:02:56]}  Bxd4 {[%clk 0:02:37]} 15. Qxd4 {[%clk 0:02:57]}  Qa5+ {[%clk 0:02:32]} 16. Qd2 {[%clk 0:02:56]}  Qxd2+ {[%clk 0:02:23]} 17. Kxd2 {[%clk 0:02:57]}  Bd7 {[%clk 0:02:22]} 18. Rhb1 {[%clk 0:02:57]}  Bc6 {[%clk 0:02:22]} 19. Ke2 {[%clk 0:02:57]}  Rfd8 {[%clk 0:02:21]} 20. f3 {[%clk 0:02:57]}  Rac8 {[%clk 0:02:20]} 21. Bd3 {[%clk 0:02:55]}  Rd7 {[%clk 0:02:18]} 22. Rb2 {[%clk 0:02:43]}  Rcd8 {[%clk 0:02:17]} 23. Bc4 {[%clk 0:02:40]}  a6 {[%clk 0:02:10]} 24. Rc1 {[%clk 0:02:40]}  Kg7 {[%clk 0:02:03]} 25. h4 {[%clk 0:02:33]}  h5 {[%clk 0:02:02]} 26. Rc3 {[%clk 0:02:30]}  Rd6 {[%clk 0:01:59]} 27. Rd3 {[%clk 0:02:26]}  Rxd3 {[%clk 0:01:57]} 28. Bxd3 {[%clk 0:02:27]}  Rd5 {[%clk 0:01:49]} 29. e4 {[%clk 0:02:23]}  Rd7 {[%clk 0:01:45]} 30. Ke3 {[%clk 0:02:23]}  Kf6 {[%clk 0:01:44]} 31. g3 {[%clk 0:02:23]}  b5 {[%clk 0:01:34]} 32. Rc2 {[%clk 0:02:22]}  Bb7 {[%clk 0:01:31]} 33. f4 {[%clk 0:02:22]}  Ke7 {[%clk 0:01:30]} 34. e5 {[%clk 0:02:21]}  Kd8 {[%clk 0:01:29]} 35. Rc5 {[%clk 0:02:15]}  Rc7 {[%clk 0:01:28]} 36. Kd4 {[%clk 0:02:15]}  Rd7+ {[%clk 0:01:23]} 37. Kc3 {[%clk 0:02:15]}  Bd5 {[%clk 0:01:17]} 38. Bc2 {[%clk 0:02:11]}  Rc7 {[%clk 0:01:16]} 39. Kd4 {[%clk 0:02:10]}  Bc4 {[%clk 0:01:08]} 40. Rxc7 {[%clk 0:02:06]}  Kxc7 {[%clk 0:01:07]} 41. Kc5 {[%clk 0:02:06]}  Be6 {[%clk 0:00:58]} 42. Be4 {[%clk 0:02:04]}  Bf5 {[%clk 0:00:50]} 43. Bf3 {[%clk 0:01:58]}  Be6 {[%clk 0:00:49]} 44. Be2 {[%clk 0:01:54]}  Bf5 {[%clk 0:00:49]} 45. Bd1 {[%clk 0:01:44]}  Be6 {[%clk 0:00:48]} 46. Bc2 {[%clk 0:01:44]}  Bg4 {[%clk 0:00:47]} 47. a4 {[%clk 0:01:35]}  bxa4 {[%clk 0:00:44]} 48. Bxa4 {[%clk 0:01:36]}  Be6 {[%clk 0:00:42]} 49. Be8 {[%clk 0:01:36]}  Bb3 {[%clk 0:00:39]} 50. Kb4 {[%clk 0:01:34]}  Be6 {[%clk 0:00:38]} 51. Ka5 {[%clk 0:01:34]}  Kb7 {[%clk 0:00:37]} 52. Ba4 {[%clk 0:01:30]}  Bc4 {[%clk 0:00:36]} 53. Kb4 {[%clk 0:01:29]}  Be6 {[%clk 0:00:34]} 54. Kc5 {[%clk 0:01:29]}  Kc7 {[%clk 0:00:28]} 55. Be8 {[%clk 0:01:29]}  Bb3 {[%clk 0:00:27]} 56. Bc6 {[%clk 0:01:29]}  a5 {[%clk 0:00:26]} 57. Bf3 {[%clk 0:01:25]}  a4 {[%clk 0:00:25]} 58. Kb4 {[%clk 0:01:25]}  Kb6 {[%clk 0:00:21]} 59. f5 {[%clk 0:01:23]}  Bc2 {[%clk 0:00:17]} 60. e6 {[%clk 0:01:20]}  fxe6 {[%clk 0:00:13]} 61. f6 {[%clk 0:01:20]} 1-0


[Site "https://www.chess.com"]

[Event "Titled Tuesday Blitz April 18 Late 2023"]
[White "Bilan, Danila"]
[Black "Qiao, Cindy"]
[WhiteFideId "24161918"]
[BlackFideId "2620243"]
[WhiteElo "2182"]
[BlackElo "1777"]
[Result "0-1"]
[Round "08"]
[TimeControl "180+2"]
[Date "2023.04.18"]
[WhiteClock "0:00:15"]
[BlackClock "0:00:06"]

1. d4 {[%clk 0:02:44]}  d5 {[%clk 0:02:58]} 2. Nf3 {[%clk 0:02:43]}  Nf6 {[%clk 0:02:58]} 3. c4 {[%clk 0:02:44]}  e6 {[%clk 0:02:59]} 4. Nc3 {[%clk 0:02:43]}  Be7 {[%clk 0:02:58]} 5. Bf4 {[%clk 0:02:42]}  c6 {[%clk 0:02:58]} 6. e3 {[%clk 0:02:40]}  Nbd7 {[%clk 0:02:58]} 7. Bd3 {[%clk 0:02:39]}  dxc4 {[%clk 0:02:58]} 8. Bxc4 {[%clk 0:02:40]}  b5 {[%clk 0:02:59]} 9. Bd3 {[%clk 0:02:38]}  a6 {[%clk 0:02:59]} 10. Rc1 {[%clk 0:02:36]}  c5 {[%clk 0:02:59]} 11. Ne4 {[%clk 0:02:34]}  c4 {[%clk 0:02:32]} 12. Bb1 {[%clk 0:02:29]}  Qa5+ {[%clk 0:02:17]} 13. Ke2 {[%clk 0:02:13]}  Qb6 {[%clk 0:01:44]} 14. b3 {[%clk 0:01:21]}  Bb7 {[%clk 0:01:32]} 15. Nxf6+ {[%clk 0:01:20]}  Nxf6 {[%clk 0:01:31]} 16. bxc4 {[%clk 0:01:20]}  bxc4 {[%clk 0:01:29]} 17. Rxc4 {[%clk 0:00:39]}  Bc6 {[%clk 0:01:29]} 18. Bd3 {[%clk 0:00:30]}  O-O {[%clk 0:01:18]} 19. Qb3 {[%clk 0:00:24]}  Qxb3 {[%clk 0:01:06]} 20. axb3 {[%clk 0:00:25]}  Bd5 {[%clk 0:01:01]} 21. Ra4 {[%clk 0:00:21]}  Bxb3 {[%clk 0:00:51]} 22. Rxa6 {[%clk 0:00:17]}  Rac8 {[%clk 0:00:49]} 23. Rb1 {[%clk 0:00:14]}  Bc2 {[%clk 0:00:43]} 24. Rb2 {[%clk 0:00:14]}  Bxd3+ {[%clk 0:00:40]} 25. Kxd3 {[%clk 0:00:14]}  Nd5 {[%clk 0:00:39]} 26. Bd6 {[%clk 0:00:10]}  Bxd6 {[%clk 0:00:23]} 27. Rxd6 {[%clk 0:00:11]}  h6 {[%clk 0:00:20]} 28. Ne5 {[%clk 0:00:07]}  Rc3+ {[%clk 0:00:18]} 29. Kd2 {[%clk 0:00:05]}  Rc7 {[%clk 0:00:18]} 30. Rd7 {[%clk 0:00:04]}  Rfc8 {[%clk 0:00:16]} 31. Rxc7 {[%clk 0:00:04]}  Rxc7 {[%clk 0:00:17]} 32. Rc2 {[%clk 0:00:04]}  Ra7 {[%clk 0:00:16]} 33. Rc8+ {[%clk 0:00:03]}  Kh7 {[%clk 0:00:15]} 34. Rc2 {[%clk 0:00:04]}  Nf6 {[%clk 0:00:14]} 35. f3 {[%clk 0:00:04]}  Nd5 {[%clk 0:00:14]} 36. e4 {[%clk 0:00:04]}  Nf4 {[%clk 0:00:14]} 37. g3 {[%clk 0:00:03]}  Nh3 {[%clk 0:00:14]} 38. Ke3 {[%clk 0:00:02]}  f6 {[%clk 0:00:14]} 39. Nd3 {[%clk 0:00:01]}  Kg8 {[%clk 0:00:11]} 40. d5 {[%clk 0:00:02]}  exd5 {[%clk 0:00:11]} 41. exd5 {[%clk 0:00:03]}  Ng5 {[%clk 0:00:11]} 42. Kd4 {[%clk 0:00:03]}  Nxf3+ {[%clk 0:00:10]} 43. Ke4 {[%clk 0:00:03]}  Ng5+ {[%clk 0:00:11]} 44. Kd4 {[%clk 0:00:04]}  Rd7 {[%clk 0:00:09]} 45. Nf4 {[%clk 0:00:04]}  Nf3+ {[%clk 0:00:08]} 46. Ke4 {[%clk 0:00:04]}  Ng5+ {[%clk 0:00:08]} 47. Kf5 {[%clk 0:00:04]}  Kf7 {[%clk 0:00:07]} 48. h4 {[%clk 0:00:05]}  Nf3 {[%clk 0:00:07]} 49. h5 {[%clk 0:00:04]}  Nd4+ {[%clk 0:00:07]} 50. Ke4 {[%clk 0:00:04]}  Nxc2 {[%clk 0:00:08]} 51. Ne6 {[%clk 0:00:04]}  Nb4 {[%clk 0:00:07]} 52. Nf4 {[%clk 0:00:04]}  f5+ {[%clk 0:00:04]} 53. Ke5 {[%clk 0:00:04]}  Re7+ {[%clk 0:00:02]} 54. Kxf5 {[%clk 0:00:05]}  Rd7 {[%clk 0:00:03]} 55. Ke5 {[%clk 0:00:05]}  Nc2 {[%clk 0:00:03]} 56. g4 {[%clk 0:00:05]}  Ne3 {[%clk 0:00:04]} 57. Ne6 {[%clk 0:00:05]}  Nxg4+ {[%clk 0:00:04]} 58. Kf5 {[%clk 0:00:06]}  Nf6 {[%clk 0:00:05]} 59. Nf4 {[%clk 0:00:06]}  Nxd5 {[%clk 0:00:04]} 60. Ng6 {[%clk 0:00:06]}  Nf6 {[%clk 0:00:05]} 61. Ne5+ {[%clk 0:00:06]}  Ke7 {[%clk 0:00:05]} 62. Nxd7 {[%clk 0:00:06]}  Kxd7 {[%clk 0:00:04]} 63. Kg6 {[%clk 0:00:07]}  Nxh5 {[%clk 0:00:05]} 64. Kxh5 {[%clk 0:00:08]}  Ke6 {[%clk 0:00:05]} 65. Kg6 {[%clk 0:00:09]}  h5 {[%clk 0:00:06]} 66. Kxh5 {[%clk 0:00:09]}  Kf5 {[%clk 0:00:06]} 67. Kh4 {[%clk 0:00:08]}  Kf4 {[%clk 0:00:06]} 68. Kh3 {[%clk 0:00:09]}  Kf3 {[%clk 0:00:06]} 69. Kh4 {[%clk 0:00:09]}  Kf4 {[%clk 0:00:06]} 70. Kh3 {[%clk 0:00:10]}  g5 {[%clk 0:00:06]} 71. Kh2 {[%clk 0:00:09]}  Kf3 {[%clk 0:00:05]} 72. Kh3 {[%clk 0:00:10]}  g4+ {[%clk 0:00:05]} 73. Kh2 {[%clk 0:00:11]}  Kf2 {[%clk 0:00:06]} 74. Kh1 {[%clk 0:00:11]}  Kg3 {[%clk 0:00:03]} 75. Kg1 {[%clk 0:00:11]}  Kh3 {[%clk 0:00:03]} 76. Kh1 {[%clk 0:00:10]}  Kg3 {[%clk 0:00:02]} 77. Kg1 {[%clk 0:00:11]}  Kf3 {[%clk 0:00:02]} 78. Kf1 {[%clk 0:00:11]}  g3 {[%clk 0:00:01]} 79. Kg1 {[%clk 0:00:12]}  g2 {[%clk 0:00:01]} 80. Kh2 {[%clk 0:00:13]}  Kf2 {[%clk 0:00:02]} 81. Kh3 {[%clk 0:00:14]}  g1=Q {[%clk 0:00:02]} 82. Kh4 {[%clk 0:00:11]}  Kf3 {[%clk 0:00:03]} 83. Kh5 {[%clk 0:00:12]}  Kf4 {[%clk 0:00:04]} 84. Kh6 {[%clk 0:00:13]}  Kf5 {[%clk 0:00:04]} 85. Kh7 {[%clk 0:00:14]}  Kf6 {[%clk 0:00:05]} 86. Kh8 {[%clk 0:00:15]}  Qg7# {[%clk 0:00:06]} 0-1


[Site "https://www.chess.com"]

[Event "Titled Tuesday Blitz April 18 Late 2023"]
[White "angelgab3"]
[Black "Szente Varga, Fruzsina"]
[BlackFideId "712264"]
[WhiteElo "2514"]
[BlackElo "1994"]
[Result "1-0"]
[Round "08"]
[TimeControl "180+2"]
[Date "2023.04.18"]
[WhiteClock "0:02:36"]
[BlackClock "0:02:10"]

1. e4 {[%clk 0:02:56]}  e5 {[%clk 0:02:59]} 2. Nf3 {[%clk 0:02:55]}  Nc6 {[%clk 0:02:59]} 3. Bb5 {[%clk 0:02:55]}  a6 {[%clk 0:02:59]} 4. Ba4 {[%clk 0:02:56]}  Nf6 {[%clk 0:02:59]} 5. O-O {[%clk 0:02:56]}  Be7 {[%clk 0:02:59]} 6. Re1 {[%clk 0:02:57]}  b5 {[%clk 0:02:58]} 7. Bb3 {[%clk 0:02:57]}  O-O {[%clk 0:02:58]} 8. a4 {[%clk 0:02:57]}  b4 {[%clk 0:02:58]} 9. d4 {[%clk 0:02:57]}  exd4 {[%clk 0:02:58]} 10. e5 {[%clk 0:02:56]}  Ne8 {[%clk 0:02:57]} 11. Bd5 {[%clk 0:02:57]}  Bc5 {[%clk 0:02:51]} 12. Nbd2 {[%clk 0:02:53]}  d3 {[%clk 0:02:45]} 13. Ne4 {[%clk 0:02:50]}  dxc2 {[%clk 0:02:45]} 14. Qxc2 {[%clk 0:02:51]}  Qe7 {[%clk 0:02:30]} 15. Qxc5 {[%clk 0:02:50]}  Qxc5 {[%clk 0:02:09]} 16. Nxc5 {[%clk 0:02:46]}  Rb8 {[%clk 0:02:10]} 17. Bg5 {[%clk 0:02:36]} 1-0


[Site "https://www.chess.com"]

[Event "Titled Tuesday Blitz April 18 Late 2023"]
[White "Tokman, Ariel"]
[Black "micke12a"]
[WhiteFideId "117420"]
[WhiteElo "2263"]
[BlackElo "2365"]
[Result "1-0"]
[Round "08"]
[TimeControl "180+2"]
[Date "2023.04.18"]
[WhiteClock "0:00:11"]
[BlackClock "0:00:19"]

1. d4 {[%clk 0:03:00]}  Nf6 {[%clk 0:02:59]} 2. c4 {[%clk 0:02:59]}  c5 {[%clk 0:02:59]} 3. Nf3 {[%clk 0:02:59]}  cxd4 {[%clk 0:02:58]} 4. Nxd4 {[%clk 0:02:59]}  e6 {[%clk 0:02:57]} 5. Nc3 {[%clk 0:02:59]}  Bb4 {[%clk 0:02:58]} 6. e3 {[%clk 0:02:55]}  O-O {[%clk 0:02:57]} 7. Be2 {[%clk 0:02:54]}  d5 {[%clk 0:02:57]} 8. O-O {[%clk 0:02:51]}  Nc6 {[%clk 0:02:57]} 9. Nxc6 {[%clk 0:02:46]}  bxc6 {[%clk 0:02:57]} 10. Bd2 {[%clk 0:02:44]}  e5 {[%clk 0:02:46]} 11. cxd5 {[%clk 0:02:42]}  cxd5 {[%clk 0:02:46]} 12. Ne4 {[%clk 0:02:37]}  Bxd2 {[%clk 0:02:42]} 13. Nxf6+ {[%clk 0:02:36]}  Qxf6 {[%clk 0:02:43]} 14. Qxd2 {[%clk 0:02:37]}  Be6 {[%clk 0:02:42]} 15. Rac1 {[%clk 0:02:36]}  a5 {[%clk 0:02:40]} 16. Bf3 {[%clk 0:02:30]}  Rfb8 {[%clk 0:02:34]} 17. b3 {[%clk 0:02:01]}  e4 {[%clk 0:02:07]} 18. Be2 {[%clk 0:02:00]}  a4 {[%clk 0:02:07]} 19. b4 {[%clk 0:01:56]}  a3 {[%clk 0:02:04]} 20. b5 {[%clk 0:01:49]}  h5 {[%clk 0:01:59]} 21. Rb1 {[%clk 0:01:35]}  h4 {[%clk 0:01:58]} 22. h3 {[%clk 0:01:27]}  Qg5 {[%clk 0:01:50]} 23. Kh1 {[%clk 0:01:26]}  Rb6 {[%clk 0:01:44]} 24. Qd4 {[%clk 0:01:23]}  Rab8 {[%clk 0:01:43]} 25. Rb3 {[%clk 0:01:12]}  Bd7 {[%clk 0:01:37]} 26. Rxa3 {[%clk 0:00:49]}  Rg6 {[%clk 0:01:35]} 27. Rg1 {[%clk 0:00:27]}  Bxh3 {[%clk 0:01:34]} 28. Bf1 {[%clk 0:00:27]}  Bg4 {[%clk 0:01:30]} 29. Ra6 {[%clk 0:00:22]}  h3 {[%clk 0:01:20]} 30. Rxg6 {[%clk 0:00:20]}  hxg2+ {[%clk 0:01:17]} 31. Rxg2 {[%clk 0:00:19]}  Qxg6 {[%clk 0:01:10]} 32. Kg1 {[%clk 0:00:19]}  f5 {[%clk 0:00:35]} 33. Qxd5+ {[%clk 0:00:19]}  Kf8 {[%clk 0:00:32]} 34. Bc4 {[%clk 0:00:15]}  Rb6 {[%clk 0:00:22]} 35. Qd8+ {[%clk 0:00:13]}  Qe8 {[%clk 0:00:18]} 36. Qxb6 {[%clk 0:00:12]}  Qd7 {[%clk 0:00:19]} 37. Qb8+ {[%clk 0:00:11]}  Ke7 {[%clk 0:00:19]} 38. Qe5+ {[%clk 0:00:11]}  Kd8 {[%clk 0:00:19]} 39. Qd5 {[%clk 0:00:11]} 1-0


[Site "https://www.chess.com"]

[Event "Titled Tuesday Blitz April 18 Late 2023"]
[White "Todorovic, Bojan"]
[Black "TheKnightOfBosnia"]
[WhiteFideId "917087"]
[WhiteElo "2266"]
[BlackElo "2492"]
[Result "1-0"]
[Round "08"]
[TimeControl "180+2"]
[Date "2023.04.18"]
[WhiteClock "0:00:59"]
[BlackClock "0:00:51"]

1. Nf3 {[%clk 0:02:59]}  Nf6 {[%clk 0:02:59]} 2. g3 {[%clk 0:02:58]}  b6 {[%clk 0:02:59]} 3. Bg2 {[%clk 0:02:58]}  Bb7 {[%clk 0:02:59]} 4. O-O {[%clk 0:02:56]}  g6 {[%clk 0:02:59]} 5. c4 {[%clk 0:02:56]}  Bg7 {[%clk 0:03:00]} 6. Nc3 {[%clk 0:02:56]}  O-O {[%clk 0:03:00]} 7. d4 {[%clk 0:02:54]}  Ne4 {[%clk 0:02:59]} 8. Nxe4 {[%clk 0:02:51]}  Bxe4 {[%clk 0:03:00]} 9. d5 {[%clk 0:02:50]}  e5 {[%clk 0:02:44]} 10. b3 {[%clk 0:02:32]}  d6 {[%clk 0:02:34]} 11. Bb2 {[%clk 0:02:28]}  a5 {[%clk 0:02:35]} 12. Qd2 {[%clk 0:02:16]}  Na6 {[%clk 0:02:32]} 13. Ne1 {[%clk 0:02:12]}  Bxg2 {[%clk 0:02:31]} 14. Kxg2 {[%clk 0:02:10]}  f5 {[%clk 0:02:31]} 15. f4 {[%clk 0:02:08]}  e4 {[%clk 0:02:30]} 16. Bxg7 {[%clk 0:02:03]}  Kxg7 {[%clk 0:02:31]} 17. Nc2 {[%clk 0:02:03]}  Qf6 {[%clk 0:02:12]} 18. Nd4 {[%clk 0:02:01]}  Rfe8 {[%clk 0:02:08]} 19. Qe3 {[%clk 0:01:59]}  a4 {[%clk 0:01:56]} 20. Rfb1 {[%clk 0:01:43]}  axb3 {[%clk 0:01:55]} 21. axb3 {[%clk 0:01:42]}  Kf7 {[%clk 0:01:50]} 22. Ra3 {[%clk 0:01:34]}  Nc5 {[%clk 0:01:46]} 23. Rba1 {[%clk 0:01:31]}  Rxa3 {[%clk 0:01:29]} 24. Rxa3 {[%clk 0:01:31]}  h6 {[%clk 0:01:13]} 25. Ra7 {[%clk 0:01:28]}  Re7 {[%clk 0:01:10]} 26. b4 {[%clk 0:01:27]}  Nd7 {[%clk 0:01:10]} 27. Rxc7 {[%clk 0:01:26]}  Nf8 {[%clk 0:01:02]} 28. Rxe7+ {[%clk 0:01:19]}  Qxe7 {[%clk 0:01:03]} 29. Nc6 {[%clk 0:01:18]}  Qc7 {[%clk 0:01:02]} 30. Qd4 {[%clk 0:01:16]}  Qb7 {[%clk 0:00:51]} 31. Nd8+ {[%clk 0:00:59]} 1-0


[Site "https://www.chess.com"]

[Event "Titled Tuesday Blitz April 18 Late 2023"]
[White "Jaskolka, Tomasz"]
[Black "Skaric, Djuro"]
[WhiteFideId "1170791"]
[BlackFideId "934569"]
[WhiteElo "2155"]
[BlackElo "2282"]
[Result "0-1"]
[Round "08"]
[TimeControl "180+2"]
[Date "2023.04.18"]
[WhiteClock "0:00:38"]
[BlackClock "0:01:37"]

1. Nf3 {[%clk 0:03:00]}  d6 {[%clk 0:03:00]} 2. e3 {[%clk 0:02:59]}  g6 {[%clk 0:03:01]} 3. c4 {[%clk 0:02:59]}  Bg7 {[%clk 0:03:01]} 4. Nc3 {[%clk 0:02:59]}  Nf6 {[%clk 0:03:00]} 5. b3 {[%clk 0:03:00]}  O-O {[%clk 0:02:59]} 6. Bb2 {[%clk 0:03:01]}  Nc6 {[%clk 0:03:00]} 7. Be2 {[%clk 0:03:01]}  e5 {[%clk 0:03:00]} 8. O-O {[%clk 0:03:02]}  h6 {[%clk 0:03:00]} 9. d3 {[%clk 0:03:02]}  Nd7 {[%clk 0:03:00]} 10. a3 {[%clk 0:02:54]}  f5 {[%clk 0:03:00]} 11. b4 {[%clk 0:02:55]}  g5 {[%clk 0:03:01]} 12. b5 {[%clk 0:02:55]}  Ne7 {[%clk 0:03:01]} 13. e4 {[%clk 0:02:55]}  f4 {[%clk 0:03:00]} 14. Nd5 {[%clk 0:02:52]}  Nxd5 {[%clk 0:02:52]} 15. cxd5 {[%clk 0:02:49]}  g4 {[%clk 0:02:50]} 16. Nd2 {[%clk 0:02:49]}  h5 {[%clk 0:02:50]} 17. Re1 {[%clk 0:02:50]}  Qg5 {[%clk 0:02:47]} 18. Bf1 {[%clk 0:02:49]}  h4 {[%clk 0:02:47]} 19. Nc4 {[%clk 0:02:44]}  Rf7 {[%clk 0:02:45]} 20. a4 {[%clk 0:02:41]}  Nf6 {[%clk 0:02:45]} 21. d4 {[%clk 0:02:39]}  Nh5 {[%clk 0:02:44]} 22. dxe5 {[%clk 0:02:39]}  dxe5 {[%clk 0:02:40]} 23. d6 {[%clk 0:02:37]}  Be6 {[%clk 0:02:38]} 24. Rc1 {[%clk 0:02:30]}  Rd8 {[%clk 0:02:29]} 25. Qd2 {[%clk 0:02:10]}  cxd6 {[%clk 0:02:22]} 26. Red1 {[%clk 0:02:06]}  Rfd7 {[%clk 0:02:18]} 27. Ba3 {[%clk 0:02:03]}  g3 {[%clk 0:02:14]} 28. fxg3 {[%clk 0:01:59]}  hxg3 {[%clk 0:02:14]} 29. hxg3 {[%clk 0:01:50]}  Nxg3 {[%clk 0:02:13]} 30. Rc3 {[%clk 0:01:33]}  Qh4 {[%clk 0:02:13]} 31. Qe1 {[%clk 0:01:26]}  Bg4 {[%clk 0:02:04]} 32. Rxd6 {[%clk 0:01:21]}  Rxd6 {[%clk 0:02:03]} 33. Nxd6 {[%clk 0:01:21]}  Kh7 {[%clk 0:02:00]} 34. Rc1 {[%clk 0:01:01]}  Bf8 {[%clk 0:01:56]} 35. Nf7 {[%clk 0:00:39]}  Bxa3 {[%clk 0:01:44]} 36. Rc7 {[%clk 0:00:39]}  Rd7 {[%clk 0:01:43]} 37. Qxg3 {[%clk 0:00:38]}  fxg3 {[%clk 0:01:37]} 0-1


[Site "https://www.chess.com"]